bitfinex-derivatives/quotes_BTCF0:USTF0_20240929
["timestamp","ask_amount","ask_price","bid_price","bid_amount"]
[1727612664841,0.05371488,65723.0,65722.0,0.3628]
[1727612667650,0.02432996,65723.0,65722.0,0.60122119]
[1727612668950,0.01,65723.0,65722.0,0.60122119]
[1727612669553,0.01,65723.0,65722.0,0.24042119]
[1727612669755,0.01,65723.0,65722.0,0.60122119]
[1727612674552,0.10648739,65724.0,65722.0,0.3628]
[1727612674762,0.02938586,65723.0,65722.0,0.3628]
[1727612674951,0.24587325,65723.0,65722.0,0.3628]
[1727612675959,0.17663944,65723.0,65722.0,0.3628]
[1727612676557,0.13938586,65723.0,65722.0,0.002]
[1727612676861,0.24589514,65723.0,65722.0,0.002]
[1727612677245,0.13938608,65723.0,65722.0,0.002]
[1727612678345,0.24588247,65723.0,65722.0,0.002]
[1727612679860,0.13938608,65723.0,65722.0,0.002]
[1727612681360,0.24586822,65723.0,65722.0,0.002]
[1727612681749,0.13938676,65723.0,65722.0,0.002]
[1727612682261,0.17664147,65723.0,65722.0,0.002]
[1727612682666,0.11,65723.0,65722.0,0.13122877]
[1727612682867,0.11,65723.0,65722.0,0.23964565]
[1727612686056,0.11,65723.0,65722.0,0.11041688]
[1727612689665,0.11,65723.0,65722.0,0.002]
[1727612697276,0.13938602,65723.0,65722.0,0.002]
[1727612697975,0.11,65723.0,65722.0,0.23965931]
[1727612700677,0.11,65723.0,65722.0,0.23967185]
[1727612704370,0.11,65723.0,65722.0,0.23983398]
[1727612711476,0.11,65723.0,65722.0,0.1105028]
[1727612712884,0.13938674,65723.0,65722.0,0.002]
[1727612713985,0.13938679,65723.0,65722.0,0.002]
[1727612718981,0.17664154,65723.0,65722.0,0.002]
[1727612719980,0.07193883,65723.0,65722.0,0.23989939]
[1727612721085,0.52841883,65723.0,65722.0,0.23989939]
[1727612721287,0.52841883,65723.0,65722.0,0.11053264]
[1727612724891,0.07193883,65723.0,65722.0,0.11053264]
[1727612727890,0.13858225,65723.0,65722.0,0.002]
[1727612733295,0.13858309,65723.0,65722.0,0.002]
[1727612734992,0.07193883,65723.0,65722.0,0.2015764]
[1727612736590,0.07193883,65723.0,65722.0,0.11027761]
[1727612737995,0.07193883,65723.0,65722.0,0.11028975]
[1727612739791,0.07193883,65723.0,65722.0,0.20158854]
[1727612742986,0.13858361,65723.0,65722.0,0.002]
[1727612743193,0.18528217,65723.0,65722.0,0.002]
[1727612749902,0.07193883,65723.0,65722.0,0.20167685]
[1727612750698,0.07393883,65723.0,65722.0,0.20167685]
[1727612751601,0.07393883,65723.0,65722.0,0.10837806]
[1727612751795,0.07393883,65723.0,65722.0,0.001]
[1727612752404,0.07393883,65723.0,65722.0,0.06086715]
[1727612752614,0.07693883,65723.0,65722.0,0.06086715]
[1727612753413,0.07693883,65723.0,65721.0,0.06086715]
[1727612753605,0.0004,65722.0,65721.0,0.06086715]
[1727612753803,0.1104,65722.0,65721.0,0.06086715]
[1727612754704,0.1114,65722.0,65721.0,0.06086715]
[1727612755817,0.1134,65722.0,65721.0,0.06086715]
[1727612756314,0.1134,65722.0,65720.0,0.06086715]
[1727612756505,0.0004,65721.0,65720.0,0.06086715]
[1727612756700,0.1004,65721.0,65720.0,0.06086715]
[1727612758017,0.1004,65721.0,65716.0,0.04561857]
[1727612758217,0.1014,65721.0,65716.0,0.04561857]
[1727612758519,0.0004,65717.0,65716.0,0.04561857]
[1727612758712,0.1004,65717.0,65716.0,0.04561857]
[1727612760413,0.1004,65717.0,65716.0,0.04761857]
[1727612761419,0.1014,65717.0,65716.0,0.04761857]
[1727612765121,0.20784395,65717.0,65716.0,0.002]
[1727612765317,0.13079069,65717.0,65716.0,0.002]
[1727612765526,0.23723464,65717.0,65716.0,0.002]
[1727612766728,0.13079069,65717.0,65716.0,0.002]
[1727612767235,0.1014,65717.0,65716.0,0.002]
[1727612767735,0.1014,65717.0,65716.0,0.0335]
[1727612768533,0.1014,65717.0,65716.0,1.09002]
[1727612768741,0.0014,65717.0,65716.0,1.09002]
[1727612769131,0.0114,65717.0,65716.0,1.09002]
[1727612770029,0.0014,65717.0,65716.0,1.09002]
[1727612771441,0.0114,65717.0,65716.0,1.09002]
[1727612773134,0.01,65717.0,65716.0,0.14180145]
[1727612773636,0.01,65717.0,65716.0,0.23298308]
[1727612773831,0.01,65717.0,65716.0,1.28950308]
[1727612774035,0.01,65717.0,65716.0,1.19832145]
[1727612774936,0.01,65717.0,65716.0,0.14180145]
[1727612776634,0.01,65717.0,65716.0,0.21769259]
[1727612776831,0.01,65717.0,65716.0,0.10948005]
[1727612777229,0.01,65717.0,65716.0,0.21770964]
[1727612777729,0.01,65717.0,65716.0,0.10948005]
[1727612780139,0.01,65717.0,65716.0,0.0335]
[1727612786838,0.01,65717.0,65716.0,0.002]
[1727612787033,0.0035,65723.0,65716.0,0.23937107]
[1727612787234,0.1135,65723.0,65722.0,0.43679307]
[1727612787541,0.11,65723.0,65722.0,0.43679307]
[1727612787740,0.11,65723.0,65722.0,0.3608]
[1727612788336,0.11,65723.0,65722.0,0.43679307]
[1727612788541,0.112,65723.0,65722.0,0.43679307]
[1727612789435,0.112,65723.0,65722.0,0.4690437]
[1727612789645,0.112,65723.0,65722.0,0.54505271]
[1727612790146,0.115,65723.0,65722.0,0.54505271]
[1727612790839,0.115,65723.0,65722.0,0.4690437]
[1727612795139,0.115,65723.0,65722.0,0.42163849]
[1727612796342,0.115,65723.0,65722.0,0.3608]
[1727612800956,0.115,65723.0,65720.0,0.0608765]
[1727612801152,0.0303,65722.0,65721.0,0.04565862]
[1727612801348,0.0303,65722.0,65720.0,0.04565862]
[1727612801349,0.0004,65721.0,65720.0,0.04565862]
[1727612801548,0.1412,65721.0,65720.0,0.04565862]
[1727612801749,0.1416,65721.0,65720.0,0.04565862]
[1727612802750,0.1416,65721.0,65719.0,0.04565862]
[1727612802951,0.0309,65720.0,65719.0,0.04565862]
[1727612803152,0.244251,65720.0,65717.0,0.0035]
[1727612803362,0.0004,65718.0,65714.0,0.3608]
[1727612803559,0.0004,65715.0,65714.0,0.3608]
[1727612803757,0.1297902,65715.0,65714.0,0.3608]
[1727612803967,0.16704928,65715.0,65714.0,0.3608]
[1727612804548,0.16704928,65715.0,65714.0,0.3628]
[1727612805060,0.16804928,65715.0,65714.0,0.3628]
[1727612805457,0.16904928,65715.0,65714.0,0.3628]
[1727612810166,0.1024,65715.0,65714.0,0.56247967]
[1727612811169,0.1024,65715.0,65714.0,0.56241538]
[1727612811478,0.1024,65715.0,65714.0,0.47122367]
[1727612814578,0.1024,65715.0,65714.0,0.56246665]
[1727612815573,0.1024,65715.0,65714.0,0.47122367]
[1727612818189,0.13098372,65715.0,65714.0,0.3628]
[1727612820292,0.13098372,65715.0,65714.0,0.002]
[1727612820496,0.13098372,65715.0,65714.0,0.3628]
[1727612820900,0.13098372,65715.0,65714.0,0.002]
[1727612821698,0.13098372,65715.0,65714.0,0.3628]
[1727612823400,0.13098372,65715.0,65714.0,0.002]
[1727612823592,0.13098372,65715.0,65714.0,0.3628]
[1727612825199,0.06433438,65715.0,65714.0,0.20146038]
[1727612825395,0.06433438,65715.0,65714.0,0.56226038]
[1727612826600,0.06433438,65715.0,65714.0,0.56230257]
[1727612826802,0.06433438,65715.0,65714.0,0.47105959]
[1727612828205,0.06433438,65715.0,65714.0,0.11025959]
[1727612833194,0.09372588,65715.0,65714.0,0.002]
[1727612836107,0.09372603,65715.0,65714.0,0.002]
[1727612839806,0.17067028,65715.0,65714.0,0.002]
[1727612840108,0.20006193,65715.0,65714.0,0.002]
[1727612840312,0.06433438,65715.0,65714.0,0.11034821]
[1727612845819,0.06433438,65715.0,65714.0,0.11035543]
[1727612847726,0.06433438,65715.0,65714.0,0.18645087]
[1727612853323,0.06433438,65715.0,65714.0,0.11035543]
[1727612855323,0.09372601,65715.0,65714.0,0.002]
[1727612857421,0.13098633,65715.0,65714.0,0.3628]
[1727612863327,0.02626802,65715.0,65714.0,0.47114979]
[1727612866025,0.02626802,65715.0,65714.0,0.56248061]
[1727612869720,0.02626802,65715.0,65714.0,0.56221461]
[1727612870436,0.02626802,65715.0,65714.0,0.3628]
[1727612870733,0.05565897,65715.0,65714.0,0.3628]
[1727612870943,0.09291899,65715.0,65714.0,0.3628]
[1727612877439,0.02626802,65715.0,65714.0,0.4708792]
[1727612878025,0.02626802,65715.0,65714.0,0.56221002]
[1727612885338,0.13962181,65715.0,65714.0,0.3628]
[1727612892446,0.02626802,65715.0,65714.0,0.47089647]
[1727612893051,0.02626802,65715.0,65714.0,0.47089655]
[1727612897952,0.02626802,65715.0,65714.0,0.47095022]
[1727612899357,0.02626802,65715.0,65714.0,0.5623093]
[1727612900341,0.13962181,65715.0,65714.0,0.3628]
[1727612900864,0.09291894,65715.0,65714.0,0.3628]
[1727612903153,0.10236182,65715.0,65714.0,0.3628]
[1727612903454,0.13962181,65715.0,65714.0,0.3628]
[1727612905554,0.16322444,65715.0,65714.0,0.3628]
[1727612905760,0.27657823,65715.0,65714.0,0.3628]
[1727612905955,0.09291894,65715.0,65714.0,0.3628]
[1727612906356,0.10236182,65715.0,65714.0,0.3628]
[1727612906552,0.13962181,65715.0,65714.0,0.3628]
[1727612907458,0.02626802,65715.0,65714.0,0.47089439]
[1727612907654,0.02626802,65715.0,65714.0,0.470894]
[1727612908366,0.1,65715.0,65714.0,0.470894]
[1727612911361,0.1,65715.0,65714.0,0.110094]
[1727612911559,0.1,65715.0,65714.0,0.470894]
[1727612912964,0.1,65715.0,65714.0,0.47069647]
[1727612914652,0.1,65715.0,65714.0,0.56205559]
[1727612915461,0.1,65715.0,65714.0,0.3628]
[1727612918863,0.1,65715.0,65714.0,0.002]
[1727612919367,0.1,65715.0,65714.0,0.3628]
[1727612922360,0.18396281,65715.0,65714.0,0.3628]
[1727612922565,0.21335372,65715.0,65714.0,0.3628]
[1727612928282,0.16665088,65715.0,65714.0,0.3628]
[1727612930469,0.1,65715.0,65714.0,0.56200965]
[1727612931381,0.1,65715.0,65714.0,0.45415912]
[1727612931567,0.1,65715.0,65714.0,0.56202755]
[1727612933876,0.1,65715.0,65714.0,0.47066843]
[1727612936979,0.1,65715.0,65714.0,0.4706817]
[1727612937587,0.1,65715.0,65714.0,0.3628]
[1727612942879,0.1,65715.0,65714.0,0.002]
[1727612943080,0.1,65715.0,65714.0,0.3628]
[1727612943381,0.1,65715.0,65714.0,0.002]
[1727612943582,0.1,65715.0,65714.0,0.3628]
[1727612945688,0.23695598,65715.0,65714.0,0.3628]
[1727612946588,0.35031009,65715.0,65714.0,0.3628]
[1727612948391,0.35031009,65715.0,65714.0,0.002]
[1727612948585,0.35031009,65715.0,65714.0,0.3628]
[1727612948992,0.35031009,65715.0,65714.0,0.002]
[1727612949503,0.35031009,65715.0,65714.0,0.3628]
[1727612949798,0.35031009,65715.0,65714.0,0.002]
[1727612950095,0.35031008,65715.0,65714.0,0.3628]
[1727612950887,0.35031008,65715.0,65714.0,0.002]
[1727612951204,0.35031008,65715.0,65714.0,0.3628]
[1727612952698,0.23695598,65715.0,65714.0,0.5992299]
[1727612953098,0.23695598,65715.0,65714.0,0.2384299]
[1727612953294,0.19888935,65715.0,65714.0,0.5992299]
[1727612954592,0.19888935,65715.0,65714.0,0.2384299]
[1727612954794,0.19888935,65715.0,65714.0,0.59862655]
[1727612954994,0.19888935,65715.0,65714.0,0.23782655]
[1727612955702,0.19888935,65715.0,65714.0,0.59862655]
[1727612957608,0.19888935,65715.0,65714.0,0.23782655]
[1727612957903,0.19888935,65715.0,65714.0,0.59862655]
[1727612959705,0.06193337,65715.0,65714.0,0.59862655]
[1727612960601,0.19888828,65715.0,65714.0,0.3628]
[1727612961293,0.22827929,65715.0,65714.0,0.3628]
[1727612961493,0.19888828,65715.0,65714.0,0.3628]
[1727612961699,0.31224239,65715.0,65714.0,0.3628]
[1727612962608,0.31224239,65715.0,65714.0,0.002]
[1727612963010,0.31224239,65715.0,65714.0,0.3628]
[1727612965411,0.31224239,65715.0,65714.0,0.002]
[1727612965603,0.31224239,65715.0,65714.0,0.3628]
[1727612967613,0.31224239,65715.0,65714.0,0.56169027]
[1727612967614,0.06193337,65715.0,65714.0,0.56169027]
[1727612968310,0.06193337,65715.0,65714.0,0.47033523]
[1727612969306,0.06193337,65715.0,65714.0,0.47033467]
[1727612971306,0.06193337,65715.0,65714.0,0.56169216]
[1727612973622,0.06193337,65715.0,65714.0,0.20089216]
[1727612974117,0.06193337,65715.0,65714.0,0.56169216]
[1727612975519,0.06193337,65715.0,65714.0,0.3628]
[1727612975716,0.17528742,65715.0,65714.0,0.3628]
[1727612975911,0.17528742,65715.0,65714.0,0.002]
[1727612976110,0.17528742,65715.0,65714.0,0.3628]
[1727612977416,0.17528742,65715.0,65714.0,0.002]
[1727612977914,0.17528742,65715.0,65714.0,0.3628]
[1727612978316,0.17528742,65715.0,65714.0,0.002]
[1727612978516,0.17528742,65715.0,65714.0,0.3628]
[1727612980324,0.17528742,65715.0,65714.0,0.002]
[1727612980517,0.17528742,65715.0,65714.0,0.3628]
[1727612980720,0.17528742,65715.0,65714.0,0.002]
[1727612981120,0.17528742,65715.0,65714.0,0.3628]
[1727612981527,0.17528742,65715.0,65714.0,0.002]
[1727612981825,0.17528742,65715.0,65714.0,0.3628]
[1727612982727,0.06193337,65715.0,65714.0,0.47034457]
[1727612983616,0.06193337,65715.0,65714.0,0.10954457]
[1727612983820,0.06193337,65715.0,65714.0,0.47034457]
[1727612984030,0.06193337,65715.0,65714.0,0.4703719]
[1727612988529,0.06193337,65715.0,65714.0,0.1095719]
[1727612988840,0.06193337,65715.0,65714.0,0.4703719]
[1727612990538,0.06193337,65715.0,65714.0,0.3628]
[1727612990841,0.09132436,65715.0,65714.0,0.3628]
[1727612991029,0.12858443,65715.0,65714.0,0.3628]
[1727612991229,0.1752874,65715.0,65714.0,0.3628]
[1727612994236,0.12858443,65715.0,65714.0,0.3628]
[1727612994437,0.13592081,65715.0,65714.0,0.3628]
[1727612994644,0.0004,65718.0,65714.0,0.3628]
[1727612994645,0.10693199,65718.0,65714.0,0.3628]
[1727612994942,0.1004,65718.0,65717.0,0.3608]
[1727612995738,0.1024,65718.0,65717.0,0.3608]
[1727612996337,0.1014,65718.0,65717.0,0.3608]
[1727612996649,0.1014,65718.0,65717.0,0.3618]
[1727612997235,0.1004,65718.0,65717.0,0.3638]
[1727612998532,0.1004,65718.0,65717.0,0.003]
[1727612998736,0.1004,65718.0,65717.0,0.7246]
[1727613000941,0.1004,65718.0,65717.0,0.80073284]
[1727613001346,0.1004,65718.0,65717.0,0.75134407]
[1727613002049,0.1004,65718.0,65717.0,0.82747691]
[1727613002251,0.1004,65718.0,65717.0,0.75134407]
[1727613004050,0.0004,65720.0,65717.0,0.75134407]
[1727613004248,0.0004,65720.0,65717.0,1.11574183]
[1727613004549,0.0104,65720.0,65717.0,1.11574183]
[1727613005445,0.0104,65720.0,65717.0,1.11474183]
[1727613005646,0.0104,65720.0,65717.0,1.08519141]
[1727613006743,0.0004,65720.0,65718.0,0.04558242]
[1727613006950,0.0004,65720.0,65719.0,0.0326]
[1727613007148,0.0035,65725.0,65719.0,0.0326]
[1727613007350,0.0435,65725.0,65724.0,0.3608]
[1727613007551,0.04,65725.0,65724.0,0.3608]
[1727613008148,0.0022829,65729.0,65724.0,0.3608]
[1727613008356,0.0022829,65729.0,65727.0,0.3608]
[1727613009157,0.035,65731.0,65727.0,0.3608]
[1727613009547,0.0454,65728.0,65727.0,0.3608]
[1727613009748,0.0354,65728.0,65727.0,0.3608]
[1727613009949,0.0454,65728.0,65727.0,0.3608]
[1727613010453,0.0574,65728.0,65727.0,0.3608]
[1727613011441,0.0534,65728.0,65727.0,0.3608]
[1727613011646,0.0604,65728.0,65727.0,0.3608]
[1727613012650,0.08978338,65728.0,65720.0,0.031]
[1727613012853,0.0004,65721.0,65720.0,0.031]
[1727613013054,0.0004,65721.0,65720.0,0.7526]
[1727613013360,0.0004,65721.0,65720.0,1.80908]
[1727613014060,0.02978338,65721.0,65720.0,1.80908]
[1727613014446,0.02978338,65721.0,65720.0,1.87092222]
[1727613014859,0.03078338,65721.0,65720.0,1.87092222]
[1727613016069,0.03078338,65721.0,65720.0,1.83286547]
[1727613016364,0.03078338,65721.0,65720.0,1.11126547]
[1727613016566,0.03078338,65721.0,65720.0,1.83286547]
[1727613017758,0.03078338,65721.0,65720.0,1.80908]
[1727613018163,0.03078338,65721.0,65720.0,1.83286477]
[1727613018358,0.03078338,65721.0,65720.0,1.11126477]
[1727613018658,0.03078338,65721.0,65720.0,1.20908]
[1727613018864,0.03078338,65721.0,65720.0,1.21908]
[1727613020758,0.10625215,65724.0,65720.0,1.42226257]
[1727613020962,0.10625215,65724.0,65721.0,0.23418257]
[1727613021262,0.10625215,65724.0,65722.0,0.23418257]
[1727613021579,0.10625215,65724.0,65723.0,0.10683698]
[1727613021760,0.10625215,65724.0,65723.0,0.82843698]
[1727613022162,0.10625215,65724.0,65723.0,0.9558167]
[1727613022759,0.10725215,65724.0,65723.0,0.9558167]
[1727613022964,0.10725215,65724.0,65723.0,0.2342167]
[1727613023164,0.10725215,65724.0,65723.0,0.9558167]
[1727613023366,0.11025215,65724.0,65723.0,0.9558167]
[1727613023668,0.11025215,65724.0,65723.0,0.2342167]
[1727613023669,0.11125215,65724.0,65723.0,0.2342167]
[1727613024168,0.11125215,65724.0,65723.0,0.9558167]
[1727613024368,0.12125215,65724.0,65723.0,0.9558167]
[1727613024570,0.12025215,65724.0,65723.0,0.9558167]
[1727613024873,0.11325215,65724.0,65723.0,0.2342167]
[1727613025169,0.11325215,65724.0,65723.0,0.9558167]
[1727613026371,0.12325215,65724.0,65723.0,0.9558167]
[1727613026769,0.11325215,65724.0,65723.0,0.9558167]
[1727613026974,0.11325215,65724.0,65723.0,0.2342167]
[1727613027267,0.11325215,65724.0,65723.0,0.9558167]
[1727613027862,0.11325215,65724.0,65723.0,0.7216]
[1727613029371,0.14325215,65724.0,65723.0,0.7216]
[1727613030866,0.037,65724.0,65723.0,0.7216]
[1727613031067,0.017,65724.0,65723.0,0.7216]
[1727613031267,0.007,65724.0,65723.0,0.7216]
[1727613031472,0.037,65724.0,65723.0,0.7216]
[1727613034279,0.007,65724.0,65723.0,0.7216]
[1727613034876,0.017,65724.0,65723.0,0.7216]
[1727613035974,0.017,65724.0,65723.0,0.95619461]
[1727613040174,0.017,65724.0,65723.0,0.95628937]
[1727613040577,0.017,65724.0,65723.0,0.23468937]
[1727613040777,0.017,65724.0,65723.0,0.95628937]
[1727613042877,0.017,65724.0,65723.0,0.82866819]
[1727613044785,0.017,65724.0,65723.0,0.10706819]
[1727613045086,0.017,65724.0,65723.0,0.82866819]
[1727613045678,0.017,65724.0,65723.0,0.10706819]
[1727613045986,0.017,65724.0,65723.0,0.82866819]
[1727613046288,0.017,65724.0,65723.0,0.95631351]
[1727613046686,0.017,65724.0,65723.0,0.23471351]
[1727613046889,0.017,65724.0,65723.0,0.95631351]
[1727613048785,0.017,65724.0,65723.0,0.23471351]
[1727613048989,0.017,65724.0,65723.0,0.95631351]
[1727613049580,0.017,65724.0,65723.0,0.23471351]
[1727613049782,0.017,65724.0,65723.0,0.95631351]
[1727613050082,0.017,65724.0,65723.0,0.95636039]
[1727613050487,0.017,65724.0,65723.0,0.23476039]
[1727613050690,0.017,65724.0,65723.0,0.95636039]
[1727613050884,0.017,65724.0,65719.0,0.063]
[1727613050885,0.08363247,65724.0,65719.0,0.063]
[1727613051186,0.0004,65720.0,65719.0,0.063]
[1727613051486,0.02978279,65720.0,65719.0,0.7846]
[1727613052490,0.02978279,65720.0,65719.0,0.063]
[1727613052789,0.02978279,65720.0,65719.0,0.7846]
[1727613053094,0.02978279,65720.0,65719.0,0.063]
[1727613053391,0.02978279,65720.0,65719.0,0.064]
[1727613053787,0.02978279,65720.0,65719.0,0.7856]
[1727613054091,0.03978279,65720.0,65719.0,0.7552]
[1727613054293,0.03978279,65720.0,65719.0,0.79325599]
[1727613054793,0.03978279,65720.0,65719.0,0.0336]
[1727613055285,0.03978279,65720.0,65719.0,0.7552]
[1727613055692,0.02978279,65720.0,65719.0,0.7552]
[1727613056077,0.02978279,65720.0,65719.0,0.85032889]
[1727613056283,0.02978279,65720.0,65719.0,0.88838488]
[1727613056480,0.02978279,65720.0,65719.0,0.89838488]
[1727613056990,0.02978279,65720.0,65719.0,0.17678488]
[1727613057392,0.02978279,65720.0,65719.0,0.89838488]
[1727613057591,0.02978279,65720.0,65719.0,0.7652]
[1727613057888,0.0004,65720.0,65719.0,1.14809725]
[1727613058092,0.0681,65728.0,65719.0,1.14809725]
[1727613058283,0.0681,65728.0,65724.0,0.10654915]
[1727613058484,0.0681,65728.0,65720.0,0.50466771]
[1727613058485,0.0681,65728.0,65726.0,0.7216]
[1727613058683,0.0781,65728.0,65727.0,0.23471003]
[1727613059591,0.0781,65728.0,65727.0,0.95631003]
[1727613059889,0.0781,65728.0,65727.0,0.95630112]
[1727613060085,0.0841,65728.0,65727.0,0.95630112]
[1727613060282,0.0841,65728.0,65727.0,0.23470112]
[1727613060594,0.0781,65728.0,65727.0,0.95630112]
[1727613060784,0.0851,65728.0,65727.0,0.95630112]
[1727613061489,0.0931,65728.0,65727.0,0.95630112]
[1727613062787,0.0931,65728.0,65727.0,0.23470112]
[1727613063095,0.0931,65728.0,65727.0,0.95630164]
[1727613063993,0.0931,65728.0,65727.0,0.23470164]
[1727613064180,0.0931,65728.0,65727.0,0.95630164]
[1727613065997,0.0931,65728.0,65727.0,0.7216]
[1727613065998,0.08442681,65728.0,65727.0,0.7216]
[1727613066493,0.08442681,65728.0,65725.0,0.02712097]
[1727613066797,0.0004,65726.0,65723.0,0.0035]
[1727613066994,0.0004,65724.0,65723.0,0.0035]
[1727613067186,0.02978278,65724.0,65723.0,0.7251]
[1727613067386,0.02978278,65724.0,65723.0,0.0035]
[1727613067897,0.02978278,65724.0,65723.0,0.7251]
[1727613068297,0.03378278,65724.0,65723.0,0.0035]
[1727613068488,0.03378278,65724.0,65723.0,0.7251]
[1727613068890,0.11094876,65724.0,65723.0,0.7251]
[1727613069092,0.14033154,65724.0,65723.0,0.7251]
[1727613069292,0.14033154,65724.0,65723.0,0.75317715]
[1727613069494,0.14333154,65724.0,65723.0,0.75317715]
[1727613070092,0.03678278,65724.0,65723.0,0.75317715]
[1727613071195,0.06678278,65724.0,65723.0,0.75317715]
[1727613072707,0.06678278,65724.0,65723.0,0.03157715]
[1727613073095,0.0374,65724.0,65723.0,0.41336773]
[1727613073400,0.0374,65724.0,65723.0,1.13496773]
[1727613073595,0.0374,65724.0,65723.0,1.14496773]
[1727613074693,0.0374,65724.0,65723.0,1.13496773]
[1727613074904,0.0374,65724.0,65723.0,0.41336773]
[1727613075105,0.0374,65724.0,65723.0,1.13496773]
[1727613075802,0.0074,65724.0,65723.0,1.14496773]
[1727613076406,0.0074,65724.0,65723.0,1.13496773]
[1727613076900,0.0174,65724.0,65723.0,1.13496773]
[1727613081095,0.05464966,65724.0,65723.0,0.75317715]
[1727613081295,0.08403244,65724.0,65723.0,0.75317715]
[1727613082310,0.07403244,65724.0,65723.0,0.75317715]
[1727613083203,0.07403244,65724.0,65723.0,0.03157715]
[1727613083506,0.08403244,65724.0,65723.0,0.75317715]
[1727613083810,0.08403244,65724.0,65723.0,0.03157715]
[1727613084107,0.08403244,65724.0,65723.0,0.75317715]
[1727613085807,0.07403244,65724.0,65723.0,0.75317715]
[1727613086511,0.14333934,65724.0,65723.0,0.75317715]
[1727613086706,0.10655648,65725.0,65723.0,0.78317715]
[1727613086906,0.12177862,65727.0,65723.0,0.78317715]
[1727613087112,0.15327862,65731.0,65723.0,0.78317715]
[1727613087309,0.0315,65731.0,65730.0,0.3608]
[1727613088197,0.16916108,65738.0,65730.0,0.87071347]
[1727613088403,0.27916108,65738.0,65737.0,0.3608]
[1727613088610,0.27916108,65738.0,65737.0,0.5987256]
[1727613090501,0.29316108,65738.0,65737.0,0.5997256]
[1727613090900,0.29316108,65738.0,65737.0,0.6007256]
[1727613090901,0.30716108,65738.0,65737.0,0.6007256]
[1727613091507,0.27496108,65738.0,65737.0,0.6007256]
[1727613091910,0.138,65738.0,65737.0,0.59920691]
[1727613096217,0.138,65738.0,65737.0,0.3628]
[1727613103323,0.20462174,65738.0,65737.0,0.3628]
[1727613111330,0.138,65738.0,65737.0,0.3628]
[1727613114026,0.138,65738.0,65737.0,0.7236]
[1727613114628,0.138,65738.0,65737.0,0.79952347]
[1727613115634,0.138,65738.0,65737.0,0.90735822]
[1727613116629,0.138,65738.0,65737.0,0.83143475]
[1727613118337,0.2046217,65738.0,65737.0,0.7236]
[1727613118534,0.2513041,65738.0,65737.0,0.7236]
[1727613119338,0.38820864,65738.0,65737.0,0.7236]
[1727613121232,0.2513041,65738.0,65737.0,0.7236]
[1727613125341,0.2513041,65738.0,65737.0,0.83149594]
[1727613125342,0.138,65738.0,65737.0,0.83149594]
[1727613126743,0.138,65738.0,65737.0,0.47069594]
[1727613129248,0.138,65738.0,65737.0,0.47069367]
[1727613133442,0.25130466,65738.0,65737.0,0.3628]
[1727613134158,0.25130549,65738.0,65737.0,0.3628]
[1727613140452,0.138,65738.0,65737.0,0.47072595]
[1727613147256,0.138,65738.0,65737.0,0.56183411]
[1727613148555,0.138,65738.0,65737.0,0.3628]
[1727613151361,0.138,65738.0,65737.0,0.42361175]
[1727613154859,0.138,65738.0,65737.0,0.3628]
[1727613155561,0.25130486,65738.0,65737.0,0.3628]
[1727613157156,0.38823935,65738.0,65737.0,0.3628]
[1727613157563,0.25130486,65738.0,65737.0,0.3628]
[1727613160058,0.25130486,65738.0,65737.0,0.002]
[1727613160567,0.25130486,65738.0,65737.0,0.7236]
[1727613162866,0.20462215,65738.0,65737.0,0.7236]
[1727613163065,0.25130515,65738.0,65737.0,0.7236]
[1727613163456,0.138,65738.0,65737.0,0.83139846]
[1727613163661,0.09994981,65738.0,65737.0,0.83139846]
[1727613164461,0.09994981,65738.0,65737.0,0.92261338]
[1727613167067,0.09994981,65738.0,65737.0,0.83139846]
[1727613170562,0.09994981,65738.0,65737.0,0.7236]
[1727613170765,0.36537107,65738.0,65737.0,0.7236]
[1727613172680,0.36537107,65738.0,65737.0,0.3628]
[1727613178484,0.25206597,65738.0,65737.0,0.47033505]
[1727613178692,0.09994981,65738.0,65737.0,0.47033505]
[1727613185797,0.09994981,65738.0,65737.0,0.3628]
[1727613193599,0.21325513,65738.0,65737.0,0.3628]
[1727613195595,0.21325755,65738.0,65737.0,0.3628]
[1727613200094,0.21325755,65738.0,65737.0,0.002]
[1727613200293,0.21325755,65738.0,65737.0,0.3628]
[1727613200706,0.09994981,65738.0,65737.0,0.43883661]
[1727613201204,0.09994981,65738.0,65737.0,0.54643038]
[1727613201595,0.09994981,65738.0,65737.0,0.18562147]
[1727613201795,0.09994981,65738.0,65737.0,0.54642147]
[1727613202307,0.09994981,65738.0,65737.0,0.18562147]
[1727613202504,0.09994981,65738.0,65737.0,0.54642147]
[1727613203092,0.09994981,65738.0,65737.0,0.18562147]
[1727613203294,0.09994981,65738.0,65737.0,0.54642147]
[1727613203507,0.09994981,65738.0,65737.0,0.18562147]
[1727613203708,0.09994981,65738.0,65737.0,0.54642147]
[1727613204093,0.09994981,65738.0,65737.0,0.43883661]
[1727613205101,0.09994981,65738.0,65737.0,0.07803661]
[1727613205302,0.09994981,65738.0,65737.0,0.43883661]
[1727613206202,0.09994981,65738.0,65737.0,0.07803661]
[1727613206808,0.09994981,65738.0,65737.0,0.43883661]
[1727613207401,0.09994981,65738.0,65737.0,0.54661433]
[1727613208496,0.09994981,65738.0,65737.0,0.47057772]
[1727613208806,0.29669603,65738.0,65737.0,0.002]
[1727613209011,0.38062406,65738.0,65737.0,0.3628]
[1727613209609,0.38062406,65738.0,65737.0,0.002]
[1727613209809,0.38062406,65738.0,65737.0,0.3628]
[1727613209810,0.21325657,65738.0,65737.0,0.3628]
[1727613211709,0.21325657,65738.0,65737.0,0.002]
[1727613211908,0.21325657,65738.0,65737.0,0.3628]
[1727613212609,0.21325657,65738.0,65737.0,0.002]
[1727613213311,0.21325657,65738.0,65737.0,0.3628]
[1727613213610,0.16657307,65738.0,65737.0,0.3628]
[1727613214515,0.16657307,65738.0,65737.0,0.002]
[1727613214706,0.16657307,65738.0,65737.0,0.3628]
[1727613215015,0.16657307,65738.0,65737.0,0.002]
[1727613215199,0.16657307,65738.0,65737.0,0.3628]
[1727613215401,0.16657307,65738.0,65737.0,0.002]
[1727613215711,0.09994981,65738.0,65737.0,0.54662373]
[1727613216504,0.09994981,65738.0,65737.0,0.18582373]